fUSD/lending_fUSD_20250616
["ID","MTS","AMOUNT","RATE_DAILY","PERIOD"]
[366093615,1750059057149,-1937.10227047,0.00016644,2]
[366093616,1750059057161,-217.71143878,0.00016657,2]
[366093617,1750059057172,-500.0,0.00016658,2]
[366093618,1750059057184,-1500.0,0.00016661,2]
[366093619,1750059057195,-162.16794471,0.00016661,2]
[366093620,1750059057209,-155.61226809,0.00016667,2]
[366093621,1750059057220,-151.0,0.000167,2]
[366093622,1750059057231,-151.0,0.000167,2]
[366093623,1750059057242,-151.0,0.000167,2]
[366093624,1750059057255,-162.58493,0.000167,2]
[366093625,1750059057266,-162.58493,0.000167,2]
[366093626,1750059057278,-156.68372719,0.000167,2]
[366093627,1750059057288,-151.0,0.000167,2]
[366093628,1750059057300,-151.0,0.000167,2]
[366093629,1750059057310,-151.0,0.000167,2]
[366093630,1750059057320,-151.0,0.000167,2]
[366093631,1750059057330,-151.0,0.000167,2]
[366093632,1750059057340,-151.0,0.000167,2]
[366093633,1750059057350,-151.0,0.000167,2]
[366093634,1750059057361,-151.0,0.000167,2]
[366093635,1750059057371,-45.61967588,0.000167,2]
[366093636,1750059057400,-4149.85140865,0.000167,2]
[366093637,1750059057512,-1068.33448452,0.000167,2]
[366093638,1750059057525,-2975.35934549,0.000167,2]
[366093639,1750059057535,-260.83226841,0.000167,2]
[366093640,1750059058568,-490.0,0.00016438,2]
[366093641,1750059058578,-490.0,0.00016438,2]
[366093642,1750059058587,-1080.08,0.00016438,2]
[366093643,1750059058597,-2786.56,0.00016438,2]
[366093644,1750059058606,-490.0,0.00016602,2]
[366093645,1750059058615,-1080.08,0.00016602,2]
[366093646,1750059058625,-2786.56,0.00016602,2]
[366093647,1750059058636,-739.16773159,0.000167,2]
[366093648,1750059058646,-151.44,0.000167,2]
[366093649,1750059058655,-214.29,0.000167,2]
[366093650,1750059058665,-803.32,0.000167,2]
[366093651,1750059058675,-523.38,0.000167,2]
[366093652,1750059058684,-1164.67,0.000167,2]
[366093653,1750059058694,-455.03,0.000167,2]
[366093654,1750059058703,-1164.67,0.000167,2]
[366093655,1750059058714,-303.68,0.000167,2]
[366093656,1750059058723,-713.2,0.000167,2]
[366093657,1750059058733,-171.81,0.000167,2]
[366093658,1750059058743,-897.06,0.000167,2]
[366093659,1750059058753,-300.0,0.000167,2]
[366093660,1750059058763,-150.0,0.000167,2]
[366093661,1750059058773,-1164.67,0.000167,2]
[366093662,1750059058783,-150.0,0.000167,2]
[366093663,1750059058793,-1164.67,0.000167,2]
[366093664,1750059058802,-150.0,0.000167,2]
[366093665,1750059058812,-150.0,0.000167,2]
[366093666,1750059058822,-1162.67,0.000167,2]
[366093667,1750059058832,-1937.10227047,0.00016705,2]
[366093668,1750059058843,-187.07,0.00016712,2]
[366093669,1750059058853,-179.64848368,0.00016713,2]
[366093670,1750059058862,-161.124481,0.0001674,2]
[366093671,1750059058872,-151.0,0.0001674,2]
[366093672,1750059058882,-151.0,0.0001674,2]
[366093673,1750059058891,-151.0,0.0001674,2]
[366093674,1750059058900,-151.0,0.0001674,2]
[366093675,1750059058910,-151.0,0.0001674,2]
[366093676,1750059058919,-151.0,0.0001674,2]
[366093677,1750059058929,-151.0,0.0001674,2]
[366093678,1750059058938,-346.897195,0.0001674,2]
[366093679,1750059058947,-346.897195,0.0001674,2]
[366093680,1750059058957,-1000.0,0.0001674,2]
[366093681,1750059058967,-1000.0,0.0001674,2]
[366093682,1750059058977,-1000.0,0.0001674,2]
[366093683,1750059058987,-533.79645947,0.0001674,2]
[366093684,1750059058996,-1000.0,0.0001674,2]
[366093685,1750059059006,-1000.0,0.0001674,2]
[366093686,1750059059016,-1000.0,0.0001674,2]
[366093687,1750059059031,-1000.0,0.0001674,2]
[366093688,1750059059041,-1000.0,0.0001674,2]
[366093689,1750059059051,-1000.0,0.0001674,2]
[366093690,1750059059061,-1000.0,0.0001674,2]
[366093691,1750059059071,-1000.0,0.0001674,2]
[366093692,1750059059081,-1000.0,0.0001674,2]
[366093693,1750059059090,-1000.0,0.0001674,2]
[366093694,1750059059100,-162.16794471,0.00016741,2]
[366093695,1750059059110,-176094.78095284,0.0001675,2]
[366093696,1750059059119,-151.0,0.00016759,2]
[366093697,1750059059129,-151.0,0.00016759,2]
[366093698,1750059059138,-151.0,0.00016759,2]
[366093699,1750059059148,-151.0,0.00016759,2]
[366093700,1750059059158,-323.754503,0.00016759,2]
[366093701,1750059059167,-323.754503,0.00016759,2]
[366093702,1750059059177,-664.998839,0.00016759,2]
[366093703,1750059059187,-664.998839,0.00016759,2]
[366093704,1750059059196,-267.819811,0.00016759,2]
[366093705,1750059059206,-267.819811,0.00016759,2]
[366093706,1750059059216,-151.0,0.00016759,2]
[366093707,1750059059226,-151.0,0.00016759,2]
[366093708,1750059059235,-151.0,0.00016759,2]
[366093709,1750059059245,-2513.00746,0.00016759,2]
[366093710,1750059059255,-2513.00746,0.00016759,2]
[366093711,1750059059265,-1327.208972,0.00016759,2]
[366093712,1750059059275,-1327.208972,0.00016759,2]
[366093713,1750059059286,-300.0,0.0001676,2]
[366093714,1750059059296,-206.81,0.0001676,2]
[366093715,1750059059306,-151.0,0.00016761,2]
[366093716,1750059059316,-151.0,0.00016761,2]
[366093717,1750059059326,-151.0,0.00016761,2]
[366093718,1750059059336,-151.0,0.00016761,2]
[366093719,1750059059346,-151.0,0.00016761,2]
[366093720,1750059059356,-201.880094,0.00016761,2]
[366093721,1750059059366,-201.880094,0.00016761,2]
[366093722,1750059059376,-151.0,0.00016761,2]
[366093723,1750059059386,-300.86066,0.00016761,2]
[366093724,1750059059396,-151.0,0.00016761,2]
[366093725,1750059059406,-151.0,0.00016761,2]
[366093726,1750059059416,-469.379063,0.00016761,2]
[366093727,1750059059425,-469.379063,0.00016761,2]
[366093728,1750059059435,-151.0,0.00016761,2]
[366093729,1750059059445,-151.0,0.00016761,2]
[366093730,1750059059454,-151.0,0.00016761,2]
[366093731,1750059059465,-51503.97541224,0.00016761,2]
[366093732,1750059064186,1000.0,0.00015764,2]
[366093733,1750059069775,10000.0,0.0002,30]
[366093734,1750059071952,200.0,0.00015263,2]
[366093737,1750059079753,3073.71838637,0.000158,2]
[366093742,1750059101685,203.0,0.00015263,2]
[366093743,1750059103015,7879.26,0.00015738,2]
[366093747,1750059190553,1000.0,0.00024658,120]
[366093748,1750059226288,1000.0,0.0002,30]
[366093749,1750059265372,500.0,0.000159,5]
[366093750,1750059267998,1100.0,0.00016,5]
[366093751,1750059269574,1700.0,0.000161,5]
[366093753,1750059492560,10000.0,0.00016,10]
[366093754,1750059521570,203.0,0.00015974,2]
[366094448,1750059811416,312.77,0.00015475,2]
[366094449,1750059878918,151.67,0.00013699,2]
[366094451,1750059912992,182.88632609,0.0001509,2]
[366094452,1750059913028,217.56188298,0.0001509,2]
[366094453,1750059919918,612.53,0.00015498,2]
[366094454,1750059925539,150.44568056,0.0001509,2]
[366094455,1750059932936,150.0,0.000161,2]
[366094456,1750059960043,12656.93,0.00015509,2]
[366094457,1750059984407,19818.38391429,0.000161,2]
[366094458,1750060010143,1110.01,0.00015519,2]
[366094459,1750060026880,20000.0,0.00016,2]
[366094460,1750060027374,500.0,0.000159,5]
[366094461,1750060029483,1000.0,0.00016,5]
[366094462,1750060099975,10000.0,0.00016,2]
[366094463,1750060104228,1000.0,0.00015458,2]
[366094466,1750060126609,10000.0,0.00016,2]
[366094467,1750060148036,275.33,0.00015466,2]
[366094468,1750060231663,-843.83675845,0.000161,5]
[366094469,1750060231757,-656.16324155,0.000161,5]
[366094470,1750060231767,-12.97172954,0.00016102,2]
[366094471,1750060231781,-287.02827046,0.00016102,2]
[366094472,1750060231792,-77.47372954,0.00016105,2]
[366094473,1750060231880,-222.52627046,0.00016105,2]
[366094474,1750060231890,-823.53845281,0.00016109,2]
[366094475,1750060231902,-260.76256171,0.00016199,2]
[366094476,1750060231915,-467.50643639,0.00016199,2]
[366094477,1750060231927,-471.7310019,0.00016199,2]
[366094478,1750060231938,-43.1564914,0.000162,3]
[366094479,1750060231951,-2137.81818939,0.000162,3]
[366094480,1750060231966,-972.800534,0.000162,3]
[366094481,1750060232006,-894.60589525,0.000162,3]
[366094482,1750060232017,-2100.0,0.000162,5]
[366094483,1750060232028,-300.0,0.00016299,2]
[366094485,1750060232039,-2600.0,0.000163,5]
[366094544,1750060232614,-300.0,0.00016337,2]
[366094548,1750060232652,-430.0,0.00016337,2]
[366094550,1750060232662,-1531.84,0.00016338,2]
[366094552,1750060232672,-173.90467242,0.00016338,2]
[366094554,1750060232683,-166.24109175,0.00016338,2]
[366094557,1750060232709,-547.98701072,0.00016338,2]
[366094559,1750060232718,-1459.42132986,0.00016338,2]
[366094561,1750060232731,-15518.85737014,0.00016338,2]
[366094564,1750060232743,-1656.2405,0.00016338,2]
[366094566,1750060232753,-500.0,0.00016399,2]
[366094568,1750060232763,-374.33145533,0.00016399,2]
[366094570,1750060232773,-500.0,0.00016399,2]
[366094572,1750060232784,-150.53,0.000164,2]
[366094574,1750060232795,-500.0,0.000164,5]
[366094576,1750060232804,-915.39,0.000164,2]
[366094577,1750060232814,-341.52,0.000164,2]
[366094580,1750060232831,-1164.67,0.000164,2]
[366094582,1750060232843,-332.48,0.000164,2]
[366094584,1750060232853,-774.02,0.000164,2]
[366094586,1750060232863,-1164.67,0.000164,2]
[366094589,1750060232874,-1164.67,0.000164,2]
[366094591,1750060232884,-2354.87,0.000164,2]
[366094593,1750060232895,-1957.856,0.00016418,2]
[366094595,1750060232905,-207.4,0.00016418,2]
[366094597,1750060232915,-46020.50029069,0.00016428,2]
[366094599,1750060232926,-151.0,0.00016428,2]
[366094601,1750060232936,-152.62413712,0.00016428,2]
[366094603,1750060232947,-567.52690343,0.00016437,2]
[366094605,1750060232958,-200.74123337,0.00016437,2]
[366094607,1750060232968,-184.51369136,0.00016437,2]
[366094609,1750060232978,-490.0,0.00016438,2]
[366094611,1750060232988,-500.0,0.00016438,2]
[366094613,1750060232999,-377.88676885,0.00016438,2]
[366094615,1750060233009,-500.0,0.00016438,2]
[366094617,1750060233020,-500.0,0.00016438,2]
[366094619,1750060233030,-500.0,0.00016438,2]
[366094621,1750060233041,-500.0,0.00016438,2]
[366094623,1750060233052,-500.0,0.00016438,2]
[366094625,1750060233063,-500.0,0.00016438,2]
[366094627,1750060233074,-500.0,0.00016438,2]
[366094629,1750060233085,-499.8895779,0.00016438,2]
[366094631,1750060233095,-490.0,0.00016438,2]
[366094633,1750060233106,-527.14,0.00016438,2]
[366094635,1750060233116,-490.0,0.00016438,2]
[366094637,1750060233127,-490.0,0.00016438,2]
[366094639,1750060233137,-595.05,0.00016438,2]
[366094641,1750060233148,-490.0,0.00016438,2]
[366094643,1750060233159,-490.0,0.00016438,2]
[366094645,1750060233169,-732.24,0.00016438,2]
[366094647,1750060233180,-565.93,0.00016438,2]
[366094649,1750060233191,-490.0,0.00016438,2]
[366094651,1750060233201,-490.0,0.00016438,2]
[366094653,1750060233212,-490.0,0.00016438,2]
[366094655,1750060233223,-490.0,0.00016438,2]
[366094657,1750060233234,-490.0,0.00016438,2]
[366094659,1750060233245,-468.69908641,0.00016438,2]
[366094662,1750060233256,-616.67,0.00016438,2]
[366094664,1750060233267,-185.55402907,0.00016438,2]
[366094666,1750060233278,-490.0,0.00016438,2]
[366094668,1750060233289,-490.0,0.00016438,2]
[366094670,1750060233300,-490.0,0.00016438,2]
[366094672,1750060233311,-490.0,0.00016438,2]
[366094674,1750060233322,-490.0,0.00016438,2]
[366094676,1750060233333,-573.67,0.00016438,2]
[366094678,1750060233344,-490.0,0.00016438,2]
[366094680,1750060233354,-490.0,0.00016438,2]
[366094682,1750060233365,-364.99890038,0.00016438,2]
[366094684,1750060233376,-490.0,0.00016438,2]
[366094685,1750060233387,-490.0,0.00016438,2]
[366094686,1750060233398,-490.0,0.00016438,2]
[366094687,1750060233414,-495.73973931,0.00016438,2]
[366094688,1750060233425,-490.0,0.00016438,2]
[366094689,1750060233436,-490.0,0.00016438,2]
[366094690,1750060233447,-490.0,0.00016438,2]
[366094691,1750060233458,-490.0,0.00016438,2]
[366094692,1750060233469,-490.0,0.00016438,2]
[366094693,1750060233481,-490.0,0.00016438,2]
[366094694,1750060233493,-490.0,0.00016438,2]
[366094695,1750060233504,-490.0,0.00016438,2]
[366094696,1750060233515,-490.0,0.00016438,2]
[366094697,1750060233526,-460.65241337,0.00016438,2]
[366094698,1750060233536,-490.0,0.00016438,2]
[366094700,1750060233548,-490.0,0.00016438,2]
[366094702,1750060233558,-491.80789948,0.00016438,2]
[366094703,1750060233569,-490.0,0.00016438,2]
[366094706,1750060233580,-490.0,0.00016438,2]
[366094708,1750060233591,-653.12,0.00016438,2]
[366094710,1750060233602,-545.19,0.00016438,2]
[366094712,1750060233612,-490.0,0.00016438,2]
[366094714,1750060233623,-490.0,0.00016438,2]
[366094716,1750060233634,-490.0,0.00016438,2]
[366094718,1750060233645,-490.0,0.00016438,2]
[366094720,1750060233655,-490.0,0.00016438,2]
[366094722,1750060233666,-495.46582422,0.00016438,2]
[366094724,1750060233676,-490.0,0.00016438,2]
[366094726,1750060233686,-490.0,0.00016438,2]
[366094728,1750060233697,-490.0,0.00016438,2]
[366094730,1750060233708,-493.19270253,0.00016438,2]
[366094732,1750060233719,-490.0,0.00016438,2]
[366094734,1750060233729,-573.37,0.00016438,2]
[366094736,1750060233740,-583.67986013,0.00016438,2]
[366094738,1750060233750,-490.0,0.00016438,2]
[366094740,1750060233761,-490.0,0.00016438,2]
[366094742,1750060233771,-490.0,0.00016438,2]
[366094744,1750060233781,-1014.36,0.00016438,2]
[366094746,1750060233792,-490.0,0.00016438,2]
[366094748,1750060233802,-503.82,0.00016438,2]
[366094750,1750060233812,-490.0,0.00016438,2]
[366094752,1750060233822,-417.55403247,0.00016438,2]
[366094754,1750060233832,-490.0,0.00016438,2]
[366094756,1750060233843,-490.0,0.00016438,2]
[366094758,1750060233854,-490.0,0.00016438,2]
[366094760,1750060233864,-490.0,0.00016438,2]
[366094762,1750060233874,-490.0,0.00016438,2]
[366094764,1750060233884,-490.0,0.00016438,2]
[366094766,1750060233894,-490.0,0.00016438,2]
[366094768,1750060233905,-490.0,0.00016438,2]
[366094770,1750060233915,-490.0,0.00016438,2]
[366094772,1750060233925,-490.0,0.00016438,2]
[366094774,1750060233935,-490.0,0.00016438,2]
[366094776,1750060233946,-490.0,0.00016438,2]
[366094779,1750060233957,-490.0,0.00016438,2]
[366094780,1750060233967,-644.48,0.00016438,2]
[366094783,1750060233978,-909.22,0.00016438,2]
[366094785,1750060233988,-490.0,0.00016438,2]
[366094787,1750060233999,-490.0,0.00016438,2]
[366094789,1750060234010,-490.0,0.00016438,2]
[366094791,1750060234020,-490.0,0.00016438,2]
[366094793,1750060234030,-490.0,0.00016438,2]
[366094795,1750060234040,-490.0,0.00016438,2]
[366094797,1750060234050,-490.0,0.00016438,2]
[366094799,1750060234061,-1291.03188246,0.00016438,2]
[366094802,1750060234080,-403.03811754,0.00016438,2]
[366094804,1750060234092,-490.0,0.00016438,2]
[366094806,1750060234102,-591.92,0.00016438,2]
[366094808,1750060234113,-1089.39,0.00016438,2]
[366094810,1750060234124,-490.0,0.00016438,2]
[366094812,1750060234134,-490.0,0.00016438,2]
[366094814,1750060234144,-730.73,0.00016438,2]
[366094816,1750060234155,-845.46,0.00016438,2]
[366094818,1750060234165,-1600.39,0.00016438,2]
[366094820,1750060234175,-490.0,0.00016438,2]
[366094822,1750060234186,-989.91,0.00016438,2]
[366094824,1750060234197,-1351.29,0.00016438,2]
[366094826,1750060234208,-169.93695999,0.00016438,2]
[366094828,1750060234219,-490.0,0.00016438,2]
[366094830,1750060234229,-490.0,0.00016438,2]
[366094832,1750060234239,-490.0,0.00016438,2]
[366094834,1750060234250,-691.6,0.00016438,2]
[366094836,1750060234260,-1058.92,0.00016438,2]
[366094838,1750060234271,-637.37,0.00016438,2]
[366094840,1750060234281,-490.0,0.00016438,2]
[366094842,1750060234292,-1699.25,0.00016438,2]
[366094844,1750060234302,-490.0,0.00016438,2]
[366094846,1750060234313,-552.19,0.00016438,2]
[366094848,1750060234323,-577.47,0.00016438,2]
[366094850,1750060234333,-490.0,0.00016438,2]
[366094852,1750060234344,-542.66,0.00016438,2]
[366094855,1750060234355,-948.62,0.00016438,2]
[366094856,1750060234365,-1297.72,0.00016438,2]
[366094858,1750060234375,-490.0,0.00016438,2]
[366094861,1750060234385,-502.02,0.00016438,2]
[366094863,1750060234396,-1041.02,0.00016438,2]
[366094865,1750060234411,-1247.75,0.00016438,2]
[366094867,1750060234421,-490.0,0.00016438,2]
[366094869,1750060234430,-546.98,0.00016438,2]
[366094871,1750060234440,-83.71408917,0.00016438,2]
[366094873,1750060234455,-587.62591083,0.00016438,2]
[366094875,1750060234465,-1173.42,0.00016438,2]
[366094877,1750060234475,-447.55615444,0.00016438,2]
[366095140,1750060237655,-174.2410962,0.00016399,2]
[366095141,1750060237666,-620.0,0.00016399,2]
[366095142,1750060237676,-42.44384556,0.00016438,2]
[366095143,1750060237686,-236.04907374,0.00016438,2]
[366095144,1750060237711,-307.53092626,0.00016438,2]
[366095145,1750060237721,-1213.3,0.00016438,2]
[366095146,1750060237731,-636.8,0.00016438,2]
[366095147,1750060237742,-490.0,0.00016438,2]
[366095148,1750060237752,-559.02138203,0.00016438,2]
[366095149,1750060237765,-712.49861797,0.00016438,2]
[366095150,1750060237775,-171.86362914,0.00016438,2]
[366095151,1750060237877,-685.7610509,0.00016438,2]
[366095154,1750060238099,-515.37531996,0.00016438,2]
[366095155,1750060238109,-128.30468004,0.00016438,2]
[366095156,1750060238121,-361.69531996,0.00016438,2]
[366095158,1750060238131,-572.73,0.00016438,2]
[366095159,1750060238147,-197.4109065,0.00016438,2]
[366095160,1750060238158,-1087.4,0.00016438,2]
[366095161,1750060238168,-490.0,0.00016438,2]
[366095162,1750060238177,-638.26,0.00016438,2]
[366095164,1750060238188,-1348.84,0.00016438,2]
[366095166,1750060238197,-1116.76,0.00016438,2]
[366095168,1750060238207,-1403.79,0.00016438,2]
[366095170,1750060238217,-701.59,0.00016438,2]
[366095172,1750060238228,-497.16,0.00016438,2]
[366095174,1750060238238,-766.62,0.00016438,2]
[366095177,1750060238248,-496.51573418,0.00016438,2]
[366095178,1750060238258,-490.0,0.00016438,2]
[366095181,1750060238269,-928.1,0.00016438,2]
[366095182,1750060238279,-490.0,0.00016438,2]
[366095185,1750060238289,-490.0,0.00016438,2]
[366095187,1750060238299,-490.0,0.00016438,2]
[366095189,1750060238309,-533.3,0.00016438,2]
[366095191,1750060238319,-609.85,0.00016438,2]
[366095193,1750060238328,-490.0,0.00016438,2]
[366095195,1750060238337,-834.52,0.00016438,2]
[366095197,1750060238347,-490.0,0.00016438,2]
[366095199,1750060238356,-492.6169623,0.00016438,2]
[366095201,1750060238366,-717.09,0.00016438,2]
[366095203,1750060238376,-491.76278292,0.00016438,2]
[366095205,1750060238385,-473.98829414,0.00016438,2]
[366095207,1750060238399,-16.01170586,0.00016438,2]
[366095209,1750060238412,-490.8306145,0.00016438,2]
[366095211,1750060238422,-302.59016917,0.00016438,2]
[366095213,1750060238434,-414.32983083,0.00016438,2]
[366095215,1750060238443,-490.0,0.00016438,2]
[366095217,1750060238454,-490.0,0.00016438,2]
[366095219,1750060238464,-490.0,0.00016438,2]
[366095221,1750060238473,-626.9,0.00016438,2]
[366095223,1750060238483,-534.0,0.00016438,2]
[366095225,1750060238493,-490.0,0.00016438,2]
[366095227,1750060238504,-880.64,0.00016438,2]
[366095229,1750060238513,-1046.36,0.00016438,2]
[366095231,1750060238523,-490.0,0.00016438,2]
[366095233,1750060238533,-602.44,0.00016438,2]
[366095235,1750060238543,-490.0,0.00016438,2]
[366095237,1750060238552,-1074.8,0.00016438,2]
[366095239,1750060238561,-809.08,0.00016438,2]
[366095241,1750060238572,-490.0,0.00016438,2]
[366095243,1750060238582,-495.02861797,0.00016438,2]
[366095245,1750060238592,-376.4215512,0.00016438,2]
[366095247,1750060238605,-113.5784488,0.00016438,2]
[366095249,1750060238615,-581.69,0.00016438,2]
[366095251,1750060238624,-1177.61,0.00016438,2]
[366095253,1750060238635,-1298.91,0.00016438,2]
[366095255,1750060238645,-490.0,0.00016438,2]
[366095257,1750060238656,-490.0,0.00016438,2]
[366095259,1750060238667,-505.66,0.00016438,2]
[366095261,1750060238677,-1181.3,0.00016438,2]
[366095263,1750060238687,-490.0,0.00016438,2]
[366095265,1750060238696,-490.0,0.00016438,2]
[366095267,1750060238706,-1515.72,0.00016438,2]
[366095269,1750060238716,-495.57682179,0.00016438,2]
[366095271,1750060238726,-490.0,0.00016438,2]
[366095273,1750060238736,-1375.82,0.00016438,2]
[366095275,1750060238746,-22.13472941,0.00016438,2]
[366095444,1750060240473,-470.82374299,0.00016438,2]
[366095446,1750060240483,-494.51491902,0.00016438,2]
[366095448,1750060240492,-490.0,0.00016438,2]
[366095450,1750060240502,-1022.85,0.00016438,2]
[366095452,1750060240511,-32.32691587,0.00016438,2]
[366095454,1750060240523,-514.02131373,0.00016438,2]
[366095456,1750060240534,-122.3817704,0.00016438,2]
[366095458,1750060240543,-283.51556969,0.00016438,2]
[366095461,1750060240555,-206.48443031,0.00016438,2]
[366095463,1750060240564,-490.0,0.00016438,2]
[366095464,1750060240574,-1336.42,0.00016438,2]
[366095467,1750060240584,-490.0,0.00016438,2]
[366095469,1750060240594,-544.41,0.00016438,2]
[366095471,1750060240603,-1251.99,0.00016438,2]
[366095473,1750060240613,-643.03,0.00016438,2]
[366095475,1750060240623,-651.55,0.00016438,2]
[366095477,1750060240633,-490.0,0.00016438,2]
[366095479,1750060240642,-490.0,0.00016438,2]
[366095481,1750060240652,-1555.79,0.00016438,2]
[366095483,1750060240661,-641.61,0.00016438,2]
[366095485,1750060240671,-1537.37,0.00016438,2]
[366095487,1750060240680,-296.78058954,0.00016438,2]
[366095489,1750060240692,-193.21941046,0.00016438,2]
[366095491,1750060240701,-359.44387999,0.00016438,2]
[366095493,1750060240711,-572.59,0.00016438,2]
[366095495,1750060240720,-490.0,0.00016438,2]
[366095497,1750060240730,-490.0,0.00016438,2]
[366095499,1750060240740,-1603.47,0.00016438,2]
[366095501,1750060240750,-490.0,0.00016438,2]
[366095503,1750060240759,-561.82,0.00016438,2]
[366095505,1750060240769,-608.17,0.00016438,2]
[366095507,1750060240778,-971.66,0.00016438,2]
[366095509,1750060240787,-490.0,0.00016438,2]
[366095511,1750060240796,-490.0,0.00016438,2]
[366095513,1750060240806,-500.08,0.00016438,2]
[366095515,1750060240816,-490.0,0.00016438,2]
[366095517,1750060240826,-970.6,0.00016438,2]
[366095535,1750060240976,-552.72,0.00016438,2]
[366095537,1750060240998,-490.0,0.00016438,2]
[366095539,1750060241008,-1070.54,0.00016438,2]
[366095541,1750060241018,-978.03,0.00016438,2]
[366095543,1750060241028,-490.0,0.00016438,2]
[366095545,1750060241038,-490.0,0.00016438,2]
[366095546,1750060241048,-665.09,0.00016438,2]
[366095547,1750060241058,-1070.2,0.00016438,2]
[366095548,1750060241068,-490.0,0.00016438,2]
[366095549,1750060241078,-490.0,0.00016438,2]
[366095550,1750060241088,-903.19,0.00016438,2]
[366095551,1750060241098,-490.0,0.00016438,2]
[366095552,1750060241108,-490.0,0.00016438,2]
[366095553,1750060241117,-1076.73,0.00016438,2]
[366095554,1750060241127,-1708.45,0.00016438,2]
[366095556,1750060241137,-501.82790841,0.00016438,2]
[366095558,1750060241146,-490.0,0.00016438,2]
[366095560,1750060241156,-490.0,0.00016438,2]
[366095562,1750060241165,-490.0,0.00016438,2]
[366095564,1750060241175,-490.0,0.00016438,2]
[366095566,1750060241185,-712.12,0.00016438,2]
[366095568,1750060241195,-490.0,0.00016438,2]
[366095570,1750060241205,-490.0,0.00016438,2]
[366095572,1750060241214,-490.0,0.00016438,2]
[366095574,1750060241223,-496.64097701,0.00016438,2]
[366095576,1750060241233,-716.14,0.00016438,2]
[366095578,1750060241243,-508.27,0.00016438,2]
[366095580,1750060241254,-2008.88,0.00016438,2]
[366095582,1750060241264,-985.43,0.00016438,2]
[366095584,1750060241274,-490.0,0.00016438,2]
[366095586,1750060241284,-1082.95,0.00016438,2]
[366095588,1750060241294,-529.54,0.00016438,2]
[366095590,1750060241304,-1216.64,0.00016438,2]
[366095592,1750060241314,-1464.37,0.00016438,2]
[366095594,1750060241323,-840.86,0.00016438,2]
[366095596,1750060241333,-490.0,0.00016438,2]
[366095598,1750060241343,-490.0,0.00016438,2]
[366095600,1750060241353,-670.3,0.00016438,2]
[366095602,1750060241363,-872.97,0.00016438,2]
[366095604,1750060241373,-750.11,0.00016438,2]
[366095606,1750060241383,-587.54,0.00016438,2]
[366095608,1750060241393,-1022.19,0.00016438,2]
[366095610,1750060241403,-2149.71,0.00016438,2]
[366095612,1750060241418,-1336.1,0.00016438,2]
[366095614,1750060241427,-498.46,0.00016438,2]
[366095616,1750060241436,-490.0,0.00016438,2]
[366095618,1750060241446,-1457.98,0.00016438,2]
[366095620,1750060241457,-490.0,0.00016438,2]
[366095622,1750060241467,-490.0,0.00016438,2]
[366095624,1750060241476,-746.61,0.00016438,2]
[366095626,1750060241487,-1017.15,0.00016438,2]
[366095628,1750060241497,-490.0,0.00016438,2]
[366095631,1750060241507,-490.0,0.00016438,2]